Workbook

Sheet AGG
A1: Date | B1: TICKER | C1: Company / TICKER | D1: Starting Price | E1: Price | F1: Gain/Loss | G1: % Gain/Loss | H1: Earnings Date | I1: Column1 | J1: % Below 52 wk High | K1: ESS | L1: Sector | M1: Industry
A2: 2026-06-14 | B2: AMKR | D2: 82.78 | E2: =_FV(Table6[[#This Row],[Company / TICKER]],"Price") -> 90.46 | F2: =Table6[[#This Row],[Price]]-Table6[[#This Row],[Starting Price]] -> 7.68 | G2: =Table6[[#This Row],[Gain/Loss]]/Table6[[#This Row],[Starting Price]] -> 0.09277603286 | H2: 2026-07-28 | I2: 44 | J2: 0.0412579 | K2: Neutral | L2: Information Technology | M2: Semiconductors & Semiconductor Equipment
A3: 2026-06-14 | B3: TER | D3: 403.2 | E3: =_FV(Table6[[#This Row],[Company / TICKER]],"Price") -> 437.92 | F3: =Table6[[#This Row],[Price]]-Table6[[#This Row],[Starting Price]] -> 34.72 | G3: =Table6[[#This Row],[Gain/Loss]]/Table6[[#This Row],[Starting Price]] -> 0.08611111111 | H3: 2026-07-28 | I3: 44 | J3: 0.0447987 | K3: Very Bullish | L3: Information Technology | M3: Semiconductors & Semiconductor Equipment
A4: 2026-06-14 | B4: LRCX | D4: 366.81 | E4: =_FV(Table6[[#This Row],[Company / TICKER]],"Price") -> 389.04 | F4: =Table6[[#This Row],[Price]]-Table6[[#This Row],[Starting Price]] -> 22.23 | G4: =Table6[[#This Row],[Gain/Loss]]/Table6[[#This Row],[Starting Price]] -> 0.06060358224 | H4: 2026-07-29 | I4: 45 | J4: 0.0054906 | K4: Very Bullish | L4: Information Technology | M4: Semiconductors & Semiconductor Equipment
A5: 2026-06-14 | B5: KLAC | D5: 254.54 | E5: =_FV(Table6[[#This Row],[Company / TICKER]],"Price") -> 259.56 | F5: =Table6[[#This Row],[Price]]-Table6[[#This Row],[Starting Price]] -> 5.02 | G5: =Table6[[#This Row],[Gain/Loss]]/Table6[[#This Row],[Starting Price]] -> 0.01972185118 | H5: 2026-07-30 | I5: 46 | J5: 0.0469339 | K5: Very Bullish | L5: Information Technology | M5: Semiconductors & Semiconductor Equipment
A6: 2026-06-14 | B6: ATI | D6: 198.48 | E6: =_FV(Table6[[#This Row],[Company / TICKER]],"Price") -> 201.19 | F6: =Table6[[#This Row],[Price]]-Table6[[#This Row],[Starting Price]] -> 2.71 | G6: =Table6[[#This Row],[Gain/Loss]]/Table6[[#This Row],[Starting Price]] -> 0.01365376864 | H6: 2026-07-30 | I6: 46 | J6: 0.0054617 | K6: Bullish | L6: Industrials | M6: Aerospace & Defense
A7: 2026-06-14 | B7: LQDA | D7: 71.23 | E7: =_FV(Table6[[#This Row],[Company / TICKER]],"Price") -> 71.07 | F7: =Table6[[#This Row],[Price]]-Table6[[#This Row],[Starting Price]] -> -0.16 | G7: =Table6[[#This Row],[Gain/Loss]]/Table6[[#This Row],[Starting Price]] -> -0.00224624456 | H7: 2026-08-11 | I7: 58 | J7: 0.0173817 | K7: Very Bullish | L7: Health Care | M7: Pharmaceuticals
A8: 2026-06-14 | B8: ADEA | D8: 31.92 | E8: =_FV(Table6[[#This Row],[Company / TICKER]],"Price") -> 31.81 | F8: =Table6[[#This Row],[Price]]-Table6[[#This Row],[Starting Price]] -> -0.11 | G8: =Table6[[#This Row],[Gain/Loss]]/Table6[[#This Row],[Starting Price]] -> -0.003446115288 | H8: 2026-08-04 | I8: 51 | J8: 0.0704718 | K8: Neutral | L8: Information Technology | M8: Software
A9: 2026-06-14 | B9: FTNT | D9: 146.3 | E9: =_FV(Table6[[#This Row],[Company / TICKER]],"Price") -> 144.73 | F9: =Table6[[#This Row],[Price]]-Table6[[#This Row],[Starting Price]] -> -1.57 | G9: =Table6[[#This Row],[Gain/Loss]]/Table6[[#This Row],[Starting Price]] -> -0.01073137389 | H9: 2026-08-05 | I9: 52 | J9: 0.0251216 | K9: Very Bullish | L9: Information Technology | M9: Software
A10: 2026-06-14 | B10: UNM | D10: 92.73 | E10: =_FV(Table6[[#This Row],[Company / TICKER]],"Price") -> 89.98 | F10: =Table6[[#This Row],[Price]]-Table6[[#This Row],[Starting Price]] -> -2.75 | G10: =Table6[[#This Row],[Gain/Loss]]/Table6[[#This Row],[Starting Price]] -> -0.02965599051 | H10: 2026-07-29 | I10: 45 | J10: 0.0079348 | K10: Neutral | L10: Financials | M10: Insurance
A11: 2026-06-14 | B11: CSTM | D11: 35.6 | E11: =_FV(Table6[[#This Row],[Company / TICKER]],"Price") -> 33.99 | F11: =Table6[[#This Row],[Price]]-Table6[[#This Row],[Starting Price]] -> -1.61 | G11: =Table6[[#This Row],[Gain/Loss]]/Table6[[#This Row],[Starting Price]] -> -0.0452247191 | H11: 2026-07-28 | I11: 44 | J11: 0.0375777 | K11: Very Bullish | L11: Materials | M11: Metals & Mining
A12: 2026-06-14
A13: 2026-06-14 | G13: =AVERAGE(Table6[% Gain/Loss]) -> 0.01815619027
A14: 2026-06-14
A15: 2026-06-14
A16: 2026-06-14
A17: 2026-06-14
A18: 2026-06-14
A19: 2026-06-14
A20: 2026-06-14
A21: 2026-06-14
A22: 2026-06-14
A23: 2026-06-14
A24: 2026-06-14
A25: 2026-06-14
A26: 2026-06-14
A27: 2026-06-14
A28: 2026-06-14
A29: 2026-06-14
A30: 2026-06-14
A31: 2026-06-14
A32: 2026-06-14
A33: 2026-06-14
A34: 2026-06-14
A35: 2026-06-14
A36: 2026-06-14
A37: 2026-06-14
A38: 2026-06-14
A39: 2026-06-14
A40: 2026-06-14
A41: 2026-06-14
A42: 2026-06-14
A43: 2026-06-14
A44: 2026-06-14
A45: 2026-06-14
A46: 2026-06-14
A47: 2026-06-14
A48: 2026-06-14
A49: 2026-06-14
A50: 2026-06-14
A51: 2026-06-14
A52: 2026-06-14
A53: 2026-06-14
A54: 2026-06-14
A55: 2026-06-14
A56: 2026-06-14
A57: 2026-06-14
A58: 2026-06-14
A59: 2026-06-14
A60: 2026-06-14
A61: 2026-06-14
A62: 2026-06-14
A63: 2026-06-14
A64: 2026-06-14
A65: 2026-06-14
A66: 2026-06-14
A67: 2026-06-14
A68: 2026-06-14
A69: 2026-06-14
A70: 2026-06-14
A71: 2026-06-14
A72: 2026-06-14

Sheet Search Criteria
A1: Symbol | B1: Company Name | C1: Security Type | D1: Security Price | E1: Market Capitalization | F1: % Below 52 Week High | G1: Volume (90 Day Avg) | H1: Price Performance (13 Weeks) | I1: Earnings Announcements (Upcoming) | J1: Equity Summary Score (ESS) from LSEG StarMine | K1: Current Ratio (Most Recent Qtr)
A2: ADEA | B2: Adeia Inc | C2: Common Stock | D2: 31.92 | E2: $3.52B | F2: 7.04718 | G2: 1.65322 | H2: 40.06143 | I2: 51 | J2: Neutral | K2: 3.4445
A3: AMKR | B3: Amkor Technology Inc | C3: Common Stock | D3: 82.78 | E3: $20.52B | F3: 4.12579 | G3: 4.78519 | H3: 92.55641 | I3: 44 | J3: Neutral | K3: 2.00967
A4: ATI | B4: ATI Inc | C4: Common Stock | D4: 198.48 | E4: $27.09B | F4: 0.54617 | G4: 2.01565 | H4: 39.80418 | I4: 46 | J4: Bullish | K4: 2.67232
A5: CSTM | B5: Constellium SE | C5: Common Stock | D5: 35.6 | E5: $4.85B | F5: 3.75777 | G5: 2.37518 | H5: 44.65664 | I5: 44 | J5: Very Bullish | K5: 1.3933
A6: FTNT | B6: Fortinet Inc | C6: Common Stock | D6: 146.3 | E6: $107.19B | F6: 2.51216 | G6: 6.55639 | H6: 75.33557 | I6: 52 | J6: Very Bullish | K6: 1.15337
A7: KLAC | B7: KLA Corp | C7: Common Stock | D7: 254.54 | E7: $332.50B | F7: 4.69339 | G7: 10.26261 | H7: 79.42537 | I7: 46 | J7: Very Bullish | K7: 3.02567
A8: LRCX | B8: Lam Research Corp | C8: Common Stock | D8: 366.81 | E8: $458.72B | F8: 0.54906 | G8: 10.07756 | H8: 72.86051 | I8: 45 | J8: Very Bullish | K8: 2.53642
A9: LQDA | B9: Liquidia Corp | C9: Common Stock | D9: 71.23 | E9: $6.33B | F9: 1.73817 | G9: 1.59442 | H9: 94.29896 | I9: 58 | J9: Very Bullish | K9: 2.22422
A10: TER | B10: Teradyne Inc | C10: Common Stock | D10: 403.2 | E10: $63.12B | F10: 4.47987 | G10: 3.6056 | H10: 40.77229 | I10: 44 | J10: Very Bullish | K10: 2.14696
A11: UNM | B11: Unum Group | C11: Common Stock | D11: 92.73 | E11: $14.82B | F11: 0.79348 | G11: 1.56303 | H11: 28.5061 | I11: 45 | J11: Neutral

Sheet Basic Facts
A1: Symbol | B1: Company Name | C1: Security Price | D1: Volume (90 Day Avg) | E1: Market Capitalization | F1: Dividend Yield | G1: Company Headquarters Location | H1: Sector | I1: Industry | J1: Optionable
A2: ADEA | B2: Adeia Inc | C2: 31.92 | D2: 1.65322 | E2: $3.52B | F2: 0.62657 | G2: United States of America | H2: Information Technology | I2: Software | J2: Yes (Option Chain)
A3: AMKR | B3: Amkor Technology Inc | C3: 82.78 | D3: 4.78519 | E3: $20.52B | F3: 0.40358 | G3: United States of America | H3: Information Technology | I3: Semiconductors & Semiconductor Equipment | J3: Yes (Option Chain)
A4: ATI | B4: ATI Inc | C4: 198.48 | D4: 2.01565 | E4: $27.09B | G4: United States of America | H4: Industrials | I4: Aerospace & Defense | J4: Yes (Option Chain)
A5: CSTM | B5: Constellium SE | C5: 35.6 | D5: 2.37518 | E5: $4.85B | G5: France | H5: Materials | I5: Metals & Mining | J5: Yes (Option Chain)
A6: FTNT | B6: Fortinet Inc | C6: 146.3 | D6: 6.55639 | E6: $107.19B | G6: United States of America | H6: Information Technology | I6: Software | J6: Yes (Option Chain)
A7: KLAC | B7: KLA Corp | C7: 254.54 | D7: 10.26261 | E7: $332.50B | F7: 0.36144 | G7: United States of America | H7: Information Technology | I7: Semiconductors & Semiconductor Equipment | J7: Yes (Option Chain)
A8: LRCX | B8: Lam Research Corp | C8: 366.81 | D8: 10.07756 | E8: $458.72B | F8: 0.28353 | G8: United States of America | H8: Information Technology | I8: Semiconductors & Semiconductor Equipment | J8: Yes (Option Chain)
A9: LQDA | B9: Liquidia Corp | C9: 71.23 | D9: 1.59442 | E9: $6.33B | G9: United States of America | H9: Health Care | I9: Pharmaceuticals | J9: Yes (Option Chain)
A10: TER | B10: Teradyne Inc | C10: 403.2 | D10: 3.6056 | E10: $63.12B | F10: 0.12897 | G10: United States of America | H10: Information Technology | I10: Semiconductors & Semiconductor Equipment | J10: Yes (Option Chain)
A11: UNM | B11: Unum Group | C11: 92.73 | D11: 1.56303 | E11: $14.82B | F11: 1.98426 | G11: United States of America | H11: Financials | I11: Insurance | J11: Yes (Option Chain)

Sheet Performance & Volatility
A1: Symbol | B1: Company Name | C1: Price Performance (52 Weeks) | D1: Total Return (1 Yr Annualized) | E1: Beta (1 Year Annualized) | F1: Standard Deviation (1 Yr Annualized)
A2: ADEA | B2: Adeia Inc | C2: 130.96961 | D2: 132.67348 | E2: 1.405019 | F2: 0.545
A3: AMKR | B3: Amkor Technology Inc | C3: 305.98333 | D3: 308.1684 | E3: 2.338853 | F3: 0.55987
A4: ATI | B4: ATI Inc | C4: 135.9206 | D4: 135.9206 | E4: 1.357808 | F4: 0.38535
A5: CSTM | B5: Constellium SE | C5: 155.01433 | D5: 155.01433 | E5: 1.67837 | F5: 0.37435
A6: FTNT | B6: Fortinet Inc | C6: 43.91108 | D6: 43.91108 | E6: 1.03723 | F6: 0.50067
A7: KLAC | B7: KLA Corp | C7: 190.90286 | D7: 192.01711 | E7: 1.757995 | F7: 0.49522
A8: LRCX | B8: Lam Research Corp | C8: 300.18547 | D8: 302.65047 | E8: 2.258613 | F8: 0.47498
A9: LQDA | B9: Liquidia Corp | C9: 392.94118 | D9: 392.94118 | E9: 1.051903 | F9: 0.76501
A10: TER | B10: Teradyne Inc | C10: 369.32837 | D10: 369.6677 | E10: 1.278743 | F10: 0.57721
A11: UNM | B11: Unum Group | C11: 17.00946 | D11: 18.38744 | E11: 0.749459 | F11: 0.2358

Sheet Valuation, Growth & Ownership
A1: Symbol | B1: Company Name | C1: S&P Global Market Intelligence Valuation | D1: S&P Global Market Intelligence Quality | E1: S&P Global Market Intelligence Growth Stability | F1: S&P Global Market Intelligence Financial Health | G1: P/E (Price/TTM Earnings) | H1: PEG Ratio | I1: EPS Growth (Proj This Yr vs. Last Yr) | J1: Institutional Ownership | K1: Institutional Ownership (Last vs. Prior Qtr)
A2: ADEA | B2: Adeia Inc | C2: 72 | D2: 72 | E2: 50 | F2: 34 | G2: 29.6 | I2: -13.93939 | J2: 98.7287 | K2: 19.9086
A3: AMKR | B3: Amkor Technology Inc | C3: 78 | D3: 82 | E3: 91 | F3: 70 | G3: 47.3 | H3: 2.57081 | I3: 36.4 | J3: 48.9195 | K3: 26.9372
A4: ATI | B4: ATI Inc | C4: 56 | D4: 83 | E4: 78 | F4: 29 | G4: 65.7 | H4: 2.50943 | I4: 36.69753 | J4: 93.3022 | K4: 12.0282
A5: CSTM | B5: Constellium SE | C5: 87 | D5: 93 | E5: 84 | F5: 67 | G5: 11.5 | H5: 0.16537 | I5: 76.5625 | J5: 91.2558 | K5: 5.9785
A6: FTNT | B6: Fortinet Inc | C6: 61 | D6: 94 | E6: 79 | F6: 68 | G6: 56.5 | H6: 4.80123 | I6: 14.38406 | J6: 65.562 | K6: 18.2408
A7: KLAC | B7: KLA Corp | C7: 66 | D7: 69 | E7: 37 | F7: 42 | G7: 7.2 | H7: 0.40249 | I7: 12.68029 | J7: 87.6049 | K7: 14.287
A8: LRCX | B8: Lam Research Corp | C8: 67 | D8: 78 | E8: 66 | F8: 48 | G8: 69.2 | H8: 2.79939 | I8: 37.53027 | J8: 80.9732 | K8: 14.034
A9: LQDA | B9: Liquidia Corp | C9: 79 | D9: 87 | E9: 88 | F9: 34 | G9: 508.8 | J9: 69.2657 | K9: 24.3477
A10: TER | B10: Teradyne Inc | C10: 58 | D10: 73 | E10: 75 | F10: 56 | G10: 74.7 | H10: 1.82559 | I10: 82.87879 | K10: 13.2487
A11: UNM | B11: Unum Group | C11: 33 | D11: 31 | E11: 46 | F11: 48 | G11: 20.2 | H11: 1.88399 | I11: 8.43788 | J11: 79.0777 | K11: 12.286

Sheet Analyst Opinions
A1: Symbol | B1: Company Name | C1: Equity Summary Score (ESS) from LSEG StarMine | D1: Equity Summary Score Change (1 Month) | E1: LSEG I/B/E/S Estimates | F1: MSCI Overall Environmental, Social & Governance Rating | G1: MSCI Environmental Score | H1: MSCI Social Score | I1: MSCI Governance Score
A2: ADEA | B2: Adeia Inc | C2: Neutral | D2: Large Decrease | E2: 2 | F2: Leader | G2: Average | H2: Average | I2: Leader
A3: AMKR | B3: Amkor Technology Inc | C3: Neutral | D3: Stable | E3: 2.833 | F3: Average | G3: Average | H3: Average | I3: Average
A4: ATI | B4: ATI Inc | C4: Bullish | D4: Stable | E4: 1.818 | F4: Average | G4: Average | H4: Average | I4: Average
A5: CSTM | B5: Constellium SE | C5: Very Bullish | D5: Stable | E5: 2.2 | F5: Leader | G5: Average | H5: Leader | I5: Leader
A6: FTNT | B6: Fortinet Inc | C6: Very Bullish | D6: Stable | E6: 2.739 | F6: Leader | G6: Leader | H6: Average | I6: Average
A7: KLAC | B7: KLA Corp | C7: Very Bullish | D7: Stable | E7: 2.133 | F7: Average | G7: Laggard | H7: Average | I7: Leader
A8: LRCX | B8: Lam Research Corp | C8: Very Bullish | D8: Stable | E8: 1.972 | F8: Leader | G8: Laggard | H8: Leader | I8: Leader
A9: LQDA | B9: Liquidia Corp | C9: Very Bullish | D9: Large Increase | E9: 1.5 | F9: Average | G9: Laggard | H9: Laggard | I9: Average
A10: TER | B10: Teradyne Inc | C10: Very Bullish | D10: Moderate Increase | E10: 2.158 | F10: Average | G10: Average | H10: Average | I10: Average
A11: UNM | B11: Unum Group | C11: Neutral | D11: Large Increase | E11: 2 | F11: Leader | G11: Leader | H11: Average | I11: Leader
